bitfinex/quotes_SOLUSD_20220212
["timestamp","ask_amount","ask_price","bid_price","bid_amount"]
[1644707151357,1.46463536,96.173,96.14,15.5969]
[1644707151856,1.46463536,96.174,96.14,15.5969]
[1644707152459,1.46463536,96.172,96.14,15.5969]
[1644707152659,1.46463536,96.174,96.14,15.5969]
[1644707153261,1.46463536,96.175,96.14,15.5969]
[1644707153661,1.46463536,96.174,96.14,15.5969]
[1644707154060,1.46463536,96.175,96.14,15.5969]
[1644707155364,1.46463536,96.174,96.14,15.5969]
[1644707155963,1.46463536,96.175,96.14,15.5969]
[1644707156364,1.46463536,96.174,96.141,5.199]
[1644707156566,1.46463536,96.173,96.14,15.5969]
[1644707156766,1.46463536,96.172,96.141,5.199]
[1644707157367,1.46463536,96.173,96.141,5.199]
[1644707157870,1.46463536,96.174,96.141,5.199]
[1644707159369,1.46463536,96.172,96.141,5.199]
[1644707159674,1.46463536,96.173,96.141,5.199]
[1644707160270,1.46463536,96.172,96.141,5.199]
[1644707160971,1.46463536,96.171,96.141,5.199]
[1644707161174,1.46463536,96.171,96.14,15.5969]
[1644707161775,1.46463536,96.17,96.14,15.5969]
[1644707163879,1.46463536,96.168,96.14,15.5969]
[1644707164079,1.46463536,96.166,96.14,15.5969]
[1644707165706,1.46463536,96.165,96.14,15.5969]
[1644707165903,1.46463536,96.164,96.14,15.5969]
[1644707166103,1.46463536,96.165,96.14,15.5969]
[1644707166903,1.46463536,96.166,96.14,15.5969]
[1644707168003,1.46463536,96.166,96.141,5.2]
[1644707168205,1.46463536,96.169,96.141,112.12390296]
[1644707168403,1.46463536,96.17,96.15,15.5951]
[1644707168605,1.46463536,96.171,96.15,15.5951]
[1644707169003,1.46463536,96.172,96.15,15.5951]
[1644707169704,1.46463536,96.173,96.15,15.5951]
[1644707169904,2.93192378,96.204,96.16,15.5925]
[1644707170113,5.80904603,96.215,96.16,15.5925]
[1644707170305,5.80904603,96.215,96.142,22.7073]
[1644707170306,5.80904603,96.215,96.161,2.62390296]
[1644707170504,2.93192378,96.221,96.161,2.62390296]
[1644707170505,0.03876213,96.224,96.161,2.62390296]
[1644707170707,2.93192378,96.234,96.161,2.62390296]
[1644707170903,2.93192378,96.233,96.161,2.62390296]
[1644707171304,2.93192378,96.233,96.162,23.3317]
[1644707171504,2.93192378,96.231,96.162,23.3317]
[1644707171703,2.93192378,96.23,96.163,2.62390296]
[1644707171903,2.93192378,96.23,96.17,15.5879]
[1644707172108,2.93192378,96.231,96.171,104.3]
[1644707172308,8.65313024,96.236,96.171,104.3]
[1644707172509,8.65313024,96.236,96.172,5.197]
[1644707172809,8.65313024,96.236,96.172,7.82090296]
[1644707173008,8.65313024,96.236,96.173,2.62390296]
[1644707173210,5.72120646,96.236,96.174,5.197]
[1644707173508,5.197,96.235,96.174,14.33390296]
[1644707173807,5.72120646,96.234,96.19,15.5889]
[1644707174208,5.72120646,96.236,96.19,15.5889]
[1644707175009,5.196,96.235,96.19,15.5889]
[1644707175209,5.72120646,96.234,96.19,15.5889]
[1644707175610,5.72120646,96.236,96.19,15.5889]
[1644707176310,5.72120646,96.236,96.191,0.25]
[1644707176511,8.65313024,96.248,96.2,15.5875]
[1644707176713,4.37171237,96.27,96.2,15.5875]
[1644707176714,2.93192378,96.252,96.2,15.5875]
[1644707176910,2.93192378,96.252,96.201,24.2408]
[1644707177110,5.72120646,96.268,96.202,5.196]
[1644707177111,5.72120646,96.251,96.202,5.196]
[1644707177310,5.72120646,96.251,96.202,2.62390296]
[1644707177511,2.93192378,96.261,96.21,15.584]
[1644707177713,2.93192378,96.264,96.211,104.3]
[1644707177913,5.7075602,96.26,96.211,106.92390296]
[1644707178110,2.93192378,96.268,96.212,32.16910296]
[1644707178315,2.93192378,96.268,96.213,104.3]
[1644707178611,5.23376213,96.278,96.213,2.62390296]
[1644707178612,5.7075602,96.267,96.213,2.62390296]
[1644707178812,8.12692378,96.274,96.22,15.5822]
[1644707179013,5.195,96.266,96.22,15.5822]
[1644707179213,5.7075602,96.265,96.22,15.5822]
[1644707179413,13.83348398,96.274,96.22,15.5822]
[1644707179613,8.63948398,96.274,96.22,15.5822]
[1644707179813,8.63948398,96.273,96.22,15.5822]
[1644707180015,5.194,96.272,96.22,15.5822]
[1644707180217,2.93192378,96.276,96.22,15.5822]
[1644707180415,5.194,96.275,96.22,15.5822]
[1644707180615,5.7075602,96.274,96.22,15.5822]
[1644707180820,5.194,96.273,96.22,15.5822]
[1644707181115,5.7075602,96.272,96.22,15.5822]
[1644707181520,5.195,96.271,96.22,15.5822]
[1644707181719,5.7075602,96.27,96.22,15.5822]
[1644707181917,5.195,96.269,96.22,15.5822]
[1644707182115,5.194,96.274,96.22,15.5822]
[1644707182317,5.69239343,96.273,96.22,15.5822]
[1644707182523,5.94239343,96.273,96.22,15.5822]
[1644707182717,5.69239343,96.272,96.22,15.5822]
[1644707184018,5.195,96.271,96.22,15.5822]
[1644707184618,5.195,96.272,96.22,15.5822]
[1644707185821,5.195,96.272,96.221,104.3]
[1644707186024,5.195,96.272,96.23,15.5809]
[1644707186421,5.195,96.272,96.231,2.62390296]
[1644707186620,22.5155,96.284,96.231,2.62390296]
[1644707187722,22.5155,96.284,96.232,5.194]
[1644707188322,5.194,96.283,96.23,15.5809]
[1644707189631,22.5155,96.284,96.231,5.194]
[1644707191129,5.194,96.283,96.22,8.04]
[1644707191327,15.01,96.28,96.22,8.04]
[1644707191528,15.01,96.28,96.131,2.37]
[1644707191529,2.93192378,96.277,96.175,5.194]
[1644707191727,2.93192378,96.268,96.157,5.195]
[1644707191925,5.23476213,96.276,96.132,5.196]
[1644707191926,15.01,96.26,96.132,5.196]
[1644707192125,15.01,96.25,96.134,15.7331]
[1644707192326,15.01,96.25,96.146,5.196]
[1644707192529,33.91836542,96.249,96.146,28.1704]
[1644707192727,5.68600329,96.248,96.16,15.5942]
[1644707192930,5.196,96.247,96.16,15.5942]
[1644707193127,5.68600329,96.246,96.175,0.25]
[1644707193531,5.196,96.245,96.175,0.25]
[1644707193731,10.88200329,96.247,96.175,0.25]
[1644707193929,5.68600329,96.244,96.175,0.25]
[1644707194129,5.196,96.243,96.175,0.25]
[1644707194329,5.68600329,96.242,96.175,0.25]
[1644707194530,5.196,96.245,96.175,0.25]
[1644707194731,104.3,96.246,96.175,0.25]
[1644707194930,5.196,96.245,96.175,0.25]
[1644707195331,5.68600329,96.244,96.175,0.25]
[1644707195534,5.68600329,96.245,96.175,0.25]
[1644707195831,15.01,96.24,96.175,0.25]
[1644707196031,10.88300329,96.239,96.175,0.25]
[1644707196234,5.68600329,96.238,96.175,0.25]
[1644707197437,5.197,96.237,96.175,0.25]
[1644707197637,5.68600329,96.236,96.175,0.25]
[1644707197937,24.2406,96.238,96.175,0.25]
[1644707198138,5.197,96.237,96.175,0.25]
[1644707198355,5.6983607,96.237,96.175,0.25]
[1644707198860,24.2406,96.238,96.176,2.62390296]
[1644707199257,24.2406,96.238,96.175,0.25]
[1644707199658,5.197,96.237,96.175,0.25]
[1644707200661,0.25,96.236,96.175,0.25]
[1644707200861,5.197,96.235,96.18,15.5909]
[1644707201063,0.25,96.236,96.18,15.5909]
[1644707201662,24.2406,96.238,96.18,15.5909]
[1644707202263,5.197,96.237,96.18,15.5909]
[1644707203663,24.2406,96.238,96.18,15.5909]
[1644707203863,0.25,96.236,96.18,15.5909]
[1644707204666,24.2406,96.238,96.18,15.5909]
[1644707204868,24.2406,96.238,96.181,2.62390296]
[1644707205069,24.2406,96.238,96.19,15.5886]
[1644707206070,24.2406,96.238,96.191,5.196]
[1644707207676,0.03876213,96.257,96.2,15.5872]
[1644707208073,23.6422,96.269,96.201,7.81890296]
[1644707208074,5.70116719,96.268,96.201,7.81890296]
[1644707208275,0.03876213,96.265,96.201,2.62390296]
[1644707208474,2.93192378,96.264,96.202,5.195]
[1644707208675,8.12692378,96.264,96.201,2.62390296]
[1644707208875,23.6422,96.269,96.202,5.195]
[1644707208876,5.70116719,96.263,96.202,5.195]
[1644707209278,2.93192378,96.267,96.202,5.195]
[1644707209476,5.70116719,96.262,96.202,5.195]
[1644707209681,2.93192378,96.267,96.202,5.195]
[1644707209877,5.195,96.266,96.21,15.5848]
[1644707210077,5.195,96.267,96.21,15.5848]
[1644707210277,5.70116719,96.266,96.21,15.5848]
[1644707210686,5.195,96.265,96.21,15.5848]
[1644707210879,10.89616719,96.267,96.21,15.5848]
[1644707211078,5.70116719,96.264,96.21,15.5848]
[1644707211379,5.70116719,96.263,96.21,15.5848]
[1644707211578,5.70116719,96.266,96.21,15.5848]
[1644707211780,5.195,96.266,96.21,15.5848]
[1644707211978,5.70116719,96.265,96.21,15.5848]
[1644707212379,26.57412378,96.269,96.21,15.5848]
[1644707212380,5.70116719,96.264,96.21,15.5848]
[1644707212579,5.195,96.263,96.21,15.5848]
[1644707212979,5.70116719,96.262,96.21,15.5848]
[1644707213180,5.70116719,96.267,96.21,15.5848]
[1644707213381,5.70116719,96.268,96.21,15.5848]
[1644707216081,5.195,96.267,96.21,15.5848]
[1644707216482,5.70116719,96.266,96.21,15.5848]
[1644707216886,5.70116719,96.268,96.21,15.5848]
[1644707218184,8.63309097,96.268,96.21,15.5848]
[1644707219186,2.93192378,96.267,96.21,15.5848]
[1644707219588,8.63309097,96.268,96.21,15.5848]
[1644707219789,5.70116719,96.266,96.21,15.5848]
[1644707219987,5.70116719,96.268,96.21,15.5848]
[1644707220187,2.93192378,96.267,96.21,15.5848]
[1644707220987,2.93192378,96.266,96.21,15.5848]
[1644707221190,2.93192378,96.265,96.21,15.5848]
[1644707221389,2.93192378,96.261,96.21,15.5848]
[1644707221591,5.195,96.26,96.21,15.5848]
[1644707221793,5.70116719,96.259,96.21,15.5848]
[1644707222492,5.70116719,96.262,96.21,15.5848]
[1644707222693,5.195,96.261,96.21,15.5848]
[1644707222893,5.70116719,96.26,96.21,15.5848]
[1644707223296,5.195,96.259,96.21,15.5848]
[1644707223492,5.70116719,96.258,96.21,15.5848]
[1644707224194,5.70116719,96.26,96.211,0.25]
[1644707224393,2.93192378,96.259,96.211,0.25]
[1644707224616,8.12692378,96.259,96.211,0.25]
[1644707224794,5.70116719,96.258,96.211,0.25]
[1644707224995,5.195,96.258,96.211,0.25]
[1644707225196,5.70116719,96.257,96.211,0.25]
[1644707227699,2.93192378,96.259,96.211,0.25]
[1644707228602,8.63309097,96.258,96.211,0.25]
[1644707228799,2.93192378,96.258,96.211,0.25]
[1644707229202,2.93192378,96.256,96.211,0.13872]
[1644707229401,5.195,96.255,96.211,0.05278]
[1644707229803,5.70116719,96.254,96.211,0.05278]
[1644707230000,5.195,96.253,96.211,0.05278]
[1644707230204,5.70116719,96.252,96.211,0.05278]
[1644707230402,5.195,96.255,96.211,0.05278]
[1644707230603,5.70116719,96.254,96.211,0.05278]
[1644707231002,8.63309097,96.254,96.211,0.05278]
[1644707232324,5.70116719,96.254,96.211,0.05278]
[1644707233228,3.18192378,96.253,96.192,5.195]
[1644707233434,3.18192378,96.253,96.191,104.3]
[1644707233435,2.93192378,96.238,96.191,84.7524]
[1644707233626,2.93192378,96.225,96.152,5.196]
[1644707233924,2.93192378,96.225,96.081,5.0]
[1644707233925,2.93192378,96.204,96.119,5.196]
[1644707234126,2.93192378,96.193,96.103,0.024]
[1644707234328,2.93192378,96.181,96.097,104.324]
[1644707234529,2.93192378,96.181,96.086,10.86831404]
[1644707234530,2.93192378,96.181,96.099,104.3]
[1644707234728,5.2,96.18,96.099,104.3]
[1644707234938,2.93192378,96.178,96.1,0.024]
[1644707235125,2.93192378,96.177,96.1,5.224]
[1644707235326,5.2,96.179,96.101,0.024]
[1644707236727,5.2,96.179,96.086,10.86885989]
[1644707236728,5.2,96.179,96.102,0.024]
[1644707237331,5.2,96.179,96.101,0.274]
[1644707237534,5.2,96.179,96.102,0.024]
[1644707251682,109.5,96.179,96.102,0.024]
[1644707252578,109.5,96.179,96.05,52.0236]
[1644707252579,2.62390296,96.178,96.081,0.274]
[1644707252776,5.2,96.177,96.081,0.25]
[1644707252985,5.2,96.177,96.082,0.024]
[1644707253179,26.30230296,96.176,96.082,0.024]
[1644707253577,104.3,96.174,96.082,0.024]
[1644707253778,15.01,96.16,96.082,0.024]
[1644707253976,109.5,96.159,96.082,0.024]
[1644707254378,104.3,96.157,96.082,0.024]
[1644707254584,5.2,96.156,96.082,0.024]
[1644707254879,5.2,96.156,96.061,0.024]
[1644707256078,5.2,96.156,96.062,2.62390296]
[1644707256279,5.2,96.156,96.07,15.6081]
[1644707256680,5.2,96.156,96.071,2.64790296]
[1644707256880,5.2,96.156,96.072,0.024]
[1644707257080,5.202,96.157,96.072,2.64790296]
[1644707257379,5.202,96.157,96.072,2.62390296]
[1644707257579,5.202,96.157,96.073,0.024]
[1644707257780,5.202,96.157,96.071,0.024]
[1644707258183,5.202,96.157,96.08,15.6067]
[1644707258379,5.202,96.157,96.081,22.6154]
[1644707258581,48.2068,96.158,96.081,25.26330296]
[1644707258781,48.2068,96.158,96.082,2.64790296]
[1644707259079,48.2068,96.158,96.083,0.024]
[1644707259281,48.2068,96.158,96.083,2.64790296]
[1644707259481,48.2068,96.158,96.084,2.64790296]
[1644707259782,2.93192378,96.196,96.09,15.6042]
[1644707259980,5.2,96.21,96.091,104.3]
[1644707260181,47.9874,96.233,96.091,124.53328063]
[1644707260182,2.93192378,96.226,96.091,124.53328063]
[1644707260386,0.03876213,96.234,96.092,41.72142671]
[1644707260580,0.03876213,96.236,96.093,104.324]
[1644707260786,0.03876213,96.234,96.12,15.5963]
[1644707260984,0.03876213,96.235,96.12,30.6063]
[1644707261180,0.03876213,96.236,96.12,30.6063]
[1644707261382,0.03876213,96.234,96.121,41.69742671]
[1644707261586,0.03876213,96.235,96.121,41.69742671]
[1644707261786,0.03876213,96.239,96.122,145.99742671]
[1644707261986,5.23776213,96.234,96.122,145.99742671]
[1644707262184,5.199,96.234,96.15,15.5916]
[1644707262384,5.23776213,96.234,96.15,15.5916]
[1644707263288,5.72464261,96.218,96.15,15.5916]
[1644707263485,10.92264261,96.218,96.15,15.5916]
[1644707263684,5.72464261,96.217,96.15,15.5916]
[1644707263888,2.93192378,96.227,96.151,5.198]
[1644707264085,5.198,96.218,96.16,15.5939]
[1644707264285,0.25,96.217,96.16,15.5939]
[1644707264485,5.198,96.216,96.16,15.5939]
[1644707264886,5.198,96.216,96.161,0.25]
[1644707266092,5.198,96.216,96.16,15.5939]
[1644707266292,5.198,96.216,96.161,0.25]
[1644707266694,5.198,96.216,96.162,2.62390296]
[1644707266893,2.93192378,96.232,96.162,2.62390296]
[1644707267094,5.198,96.233,96.163,5.198]
[1644707267395,5.198,96.218,96.17,15.5924]
[1644707272201,5.198,96.218,96.171,2.62390296]
[1644707272405,5.197,96.235,96.171,2.62390296]
[1644707272602,5.23576213,96.235,96.171,2.62390296]
[1644707274204,5.197,96.218,96.171,2.62390296]
[1644707274404,5.197,96.218,96.172,5.197]
[1644707274614,24.4956,96.263,96.18,15.5907]
[1644707274615,0.03876213,96.235,96.18,15.5907]
[1644707274808,2.93192378,96.249,96.161,0.25]
[1644707274809,2.93192378,96.249,96.181,5.196]
[1644707275008,0.03876213,96.248,96.231,5.0]
[1644707275207,4.37171237,96.32,96.231,5.0]
[1644707275208,2.93192378,96.304,96.231,5.0]
[1644707275410,0.02555721,96.292,96.232,7.81890296]
[1644707275610,5.21955721,96.303,96.232,2.62390296]
[1644707275811,0.02555721,96.304,96.241,5.0]
[1644707276007,0.02555721,96.302,96.241,14.41]
[1644707276207,0.02555721,96.318,96.251,104.3]
[1644707276409,0.02555721,96.325,96.251,104.3]
[1644707276709,5.52323564,96.358,96.251,104.3]
[1644707276710,0.02555721,96.324,96.252,2.62390296]
[1644707277138,5.54839644,96.367,96.27,15.5714]
[1644707277312,0.02555721,96.324,96.27,15.5714]
[1644707277508,0.02555721,96.366,96.271,2.62390296]
[1644707277708,0.02555721,96.368,96.271,2.62390296]
[1644707277908,5.191,96.365,96.271,2.62390296]
[1644707278108,5.191,96.367,96.271,2.62390296]
[1644707278311,0.02555721,96.364,96.271,2.62390296]
[1644707278508,22.8916,96.384,96.244,2.62390296]
[1644707278509,2.64946017,96.366,96.244,2.62390296]
[1644707278709,15.01,96.36,96.241,9.41]
[1644707278908,8.43779182,96.359,96.241,9.41]
[1644707279109,2.93192378,96.354,96.241,9.41]
[1644707279311,13.34732821,96.359,96.241,9.41]
[1644707279312,104.3,96.349,96.241,9.41]
[1644707279511,5.50586804,96.348,96.241,9.41]
[1644707279720,10.72342525,96.348,96.241,9.41]
[1644707279912,2.62390296,96.347,96.241,9.41]
[1644707280112,13.65534903,96.346,96.241,9.41]
[1644707280310,15.58,96.34,96.25,15.5801]
[1644707280514,15.58,96.34,96.241,9.41]
[1644707280515,15.01,96.33,96.241,9.41]
[1644707280715,10.72342525,96.329,96.241,8.41]
[1644707280915,2.93192378,96.321,96.241,8.41]
[1644707281113,15.01,96.31,96.241,8.41]
[1644707281312,15.01,96.3,96.241,8.41]
[1644707281516,15.01,96.29,96.241,0.1538]
[1644707281915,5.192,96.289,96.241,0.1538]
[1644707282112,0.06893899,96.24,96.19,15.5888]
[1644707282314,5.196,96.239,96.19,15.5888]
[1644707282915,7.81990296,96.239,96.17,15.5919]
[1644707283516,7.67413296,96.239,96.17,15.5919]
[1644707283919,5.05023,96.239,96.17,15.5919]
[1644707284521,0.06893899,96.24,96.17,15.5919]
[1644707284742,0.06893899,96.24,96.171,0.25]
[1644707284941,0.06893899,96.24,96.18,15.5908]
[1644707288547,0.06893899,96.24,96.181,104.3]
[1644707288747,0.06893899,96.24,96.19,15.5856]
[1644707294053,0.06893899,96.24,96.2,15.5849]
[1644707295654,0.06893899,96.24,96.201,104.3]
[1644707295857,0.06893899,96.24,96.21,15.5852]
[1644707303162,0.06893899,96.24,96.192,5.196]
[1644707303361,6.65490965,96.239,96.192,5.196]
[1644707303560,1.45890965,96.236,96.131,46.9215]
[1644707303761,1.45890965,96.236,96.144,0.024]
[1644707303959,0.06893899,96.24,96.132,0.024]
[1644707303960,1.45890965,96.233,96.132,0.024]
[1644707304161,1.45890965,96.234,96.132,0.024]
[1644707304359,1.45890965,96.234,96.133,5.198]
[1644707304560,6.65690965,96.233,96.134,0.024]
[1644707304864,1.45890965,96.231,96.17,15.5929]
[1644707305064,1.45890965,96.232,96.17,15.5929]
[1644707305461,1.45890965,96.231,96.17,15.5929]
[1644707305863,1.45890965,96.231,96.15,15.5955]
[1644707306062,1.45890965,96.224,96.15,15.5955]
[1644707306262,1.45890965,96.223,96.15,15.5955]
[1644707306464,6.65690965,96.223,96.15,15.5955]
[1644707306663,1.45890965,96.218,96.15,15.5955]
[1644707306861,5.198,96.217,96.15,15.5955]
[1644707307464,1.45890965,96.21,96.15,15.5955]
[1644707307863,6.65690965,96.209,96.15,15.5955]
[1644707308064,1.45890965,96.209,96.15,15.5955]
[1644707308263,5.198,96.208,96.15,15.5955]
[1644707308465,1.45890965,96.192,96.15,15.5955]
[1644707308665,1.45890965,96.193,96.15,15.5955]
[1644707309064,5.199,96.192,96.15,15.5955]
[1644707310568,1.45890965,96.197,96.15,15.5955]
[1644707310768,5.198,96.196,96.15,15.5955]
[1644707311170,6.65690965,96.196,96.121,0.024]
[1644707311369,16.46890965,96.19,96.123,0.024]
[1644707311573,1.45890965,96.184,96.101,0.024]
[1644707311771,1.45890965,96.181,96.101,0.024]
[1644707311969,1.45890965,96.177,96.101,0.024]
[1644707312370,5.2,96.176,96.101,0.024]
[1644707312570,1.45890965,96.182,96.101,0.024]
[1644707312773,5.2,96.18,96.11,15.6018]
[1644707312973,6.65890965,96.181,96.11,15.6258]
[1644707313171,1.45890965,96.181,96.11,15.6018]
[1644707313371,1.45890965,96.186,96.11,15.6258]
[1644707313573,5.2,96.185,96.111,0.024]
[1644707313773,6.65890965,96.188,96.111,0.024]
[1644707313972,1.45890965,96.188,96.111,0.024]
[1644707314172,5.2,96.187,96.111,0.024]
[1644707314573,6.65890965,96.189,96.111,0.024]
[1644707314772,1.45890965,96.188,96.111,0.024]
[1644707315072,5.2,96.187,96.111,0.024]
[1644707316375,5.2,96.187,96.12,15.6011]
[1644707316574,5.2,96.189,96.12,15.6011]
[1644707317374,5.2,96.189,96.102,0.024]
[1644707317577,1.45890965,96.184,96.102,0.024]
[1644707317878,5.2,96.183,96.102,0.024]
[1644707318080,15.01,96.18,96.102,0.024]
[1644707318276,5.2,96.179,96.102,0.024]
[1644707319801,15.6073,96.17,96.102,0.024]
[1644707320001,6.65890965,96.169,96.101,0.024]
[1644707320200,15.01,96.16,96.081,0.024]
[1644707320404,15.01,96.16,96.056,10.87224171]
[1644707320405,5.2,96.159,96.056,10.87224171]
[1644707320602,5.2,96.159,96.057,0.024]
[1644707320802,4.08281261,96.158,96.057,0.024]
[1644707321004,6.66090965,96.157,96.057,0.024]
[1644707321204,9.28481261,96.157,96.057,0.024]
[1644707321403,2.62390296,96.156,96.057,0.024]
[1644707321603,5.202,96.155,96.057,0.024]
[1644707321805,15.6105,96.15,96.06,15.61]
[1644707322002,5.202,96.149,96.061,0.024]
[1644707322404,5.202,96.149,96.058,0.024]
[1644707323507,5.202,96.149,96.07,15.6094]
[1644707323707,5.202,96.149,96.071,0.024]
[1644707323906,5.202,96.162,96.071,2.64790296]
[1644707324108,5.202,96.168,96.072,2.62390296]
[1644707324307,5.202,96.172,96.072,2.62390296]
[1644707324507,1.45890965,96.18,96.073,0.024]
[1644707324806,5.2,96.171,96.09,15.6058]
[1644707325008,5.2,96.179,96.091,0.024]
[1644707325206,1.70890965,96.178,96.091,2.64790296]
[1644707325408,0.25,96.178,96.092,2.62390296]
[1644707325608,5.2,96.177,96.092,2.62390296]
[1644707325805,1.45890965,96.181,96.093,0.024]
[1644707326005,1.45890965,96.182,96.093,0.024]
[1644707326206,1.45890965,96.181,96.094,2.62390296]
[1644707326406,1.45890965,96.18,96.094,2.62390296]
[1644707326608,1.45890965,96.182,96.095,0.024]
[1644707326809,1.45890965,96.185,96.11,15.602]
[1644707327008,1.45890965,96.185,96.111,0.024]
[1644707327308,5.2,96.184,96.111,0.024]
[1644707327509,1.45890965,96.186,96.111,0.024]
[1644707327709,5.2,96.185,96.111,0.024]
[1644707328212,0.25,96.184,96.111,0.024]
[1644707328410,1.45890965,96.181,96.111,0.024]
[1644707328609,1.45890965,96.181,96.11,18.22590296]
[1644707328610,1.45890965,96.179,96.112,2.62390296]
[1644707328814,1.70890965,96.184,96.112,2.62390296]
[1644707329012,5.2,96.183,96.112,2.62390296]
[1644707329210,5.2,96.183,96.112,2.64790296]
[1644707329410,5.2,96.183,96.12,15.6014]
[1644707330414,0.25,96.184,96.12,15.6014]
[1644707331410,1.45890965,96.178,96.121,2.62390296]
[1644707331613,1.45890965,96.183,96.121,2.62390296]
[1644707331813,1.45890965,96.195,96.13,15.5957]
[1644707332010,1.45890965,96.206,96.131,104.3]
[1644707332212,1.45890965,96.207,96.131,106.92390296]
[1644707332411,1.45890965,96.207,96.132,2.64790296]
[1644707332611,1.45890965,96.206,96.132,2.64790296]
[1644707332812,1.45890965,96.205,96.133,2.62390296]
[1644707333013,1.45890965,96.206,96.134,0.024]
[1644707333315,1.45890965,96.206,96.135,2.62390296]
[1644707333712,1.45890965,96.206,96.135,2.64790296]
[1644707334012,1.45890965,96.208,96.15,15.5925]
[1644707334412,1.45890965,96.205,96.151,2.62390296]
[1644707334613,1.45890965,96.205,96.151,7.82090296]
[1644707334812,1.45890965,96.205,96.151,2.62390296]
[1644707335014,1.45890965,96.205,96.152,2.62390296]
[1644707335212,1.45890965,96.206,96.153,5.198]
[1644707335413,1.45890965,96.207,96.152,2.62390296]
[1644707335614,1.45890965,96.207,96.154,2.62390296]
[1644707335821,1.45890965,96.207,96.16,15.5934]
[1644707336214,1.45890965,96.209,96.161,2.62390296]
[1644707336415,1.45890965,96.219,96.162,104.3]
[1644707336816,1.45890965,96.22,96.163,2.62390296]
[1644707337415,1.45890965,96.226,96.163,2.62390296]
[1644707337616,1.45890965,96.226,96.164,5.197]
[1644707337818,1.45890965,96.226,96.17,15.5918]
[1644707338017,1.45890965,96.226,96.171,5.197]
[1644707338217,1.45890965,96.226,96.171,2.62390296]
[1644707338420,1.45890965,96.227,96.172,7.82090296]
[1644707338620,1.45890965,96.228,96.172,2.62390296]
[1644707338818,4.37171237,96.282,96.166,104.3]
[1644707338819,1.45890965,96.239,96.173,7.81990296]
[1644707339016,1.45890965,96.238,96.173,7.81990296]
[1644707339216,1.45890965,96.238,96.174,106.92390296]
[1644707339418,10.77889152,96.265,96.174,106.92390296]
[1644707339419,1.45890965,96.241,96.18,15.5889]
[1644707339618,1.45890965,96.243,96.181,5.196]
[1644707339818,1.45890965,96.244,96.181,117.11990296]
[1644707340017,1.45890965,96.244,96.181,111.92390296]
[1644707340217,1.45890965,96.244,96.182,7.81990296]
[1644707340419,1.45890965,96.245,96.182,7.81990296]
[1644707340617,1.45890965,96.247,96.183,2.62390296]
[1644707340820,1.45890965,96.247,96.19,15.5845]
[1644707341022,1.45890965,96.247,96.184,5.196]
[1644707341023,1.45890965,96.248,96.191,5.196]
[1644707341219,1.45890965,96.248,96.191,2.62390296]
[1644707341518,1.45890965,96.248,96.192,7.81990296]
[1644707341717,1.45890965,96.245,96.192,7.81990296]
[1644707342122,5.196,96.244,96.192,7.81990296]
[1644707342320,1.45890965,96.244,96.192,5.196]
[1644707342519,24.5851,96.322,96.192,5.196]
[1644707342520,1.45890965,96.247,96.2,15.5827]
[1644707342719,1.45890965,96.258,96.2,15.5827]
[1644707342918,1.45890965,96.262,96.201,2.62390296]
[1644707343119,1.45890965,96.269,96.201,2.62390296]
[1644707343323,1.45890965,96.272,96.201,2.62390296]
[1644707343517,5.22055721,96.283,96.201,2.62390296]
[1644707343720,0.02555721,96.282,96.202,5.445]
[1644707343918,0.02555721,96.282,96.21,15.581]
[1644707344117,6.67946686,96.288,96.211,104.3]
[1644707344318,5.22055721,96.281,96.211,106.92390296]
[1644707344517,5.195,96.281,96.212,5.194]